bitfinex-derivatives/quotes_ETHF0:USTF0_20241230
["timestamp","ask_amount","ask_price","bid_price","bid_amount"]
[1735573526457,6.76594245,3332.5,3331.6,3.2078]
[1735573526662,0.30075,3331.8,3331.7,0.30075]
[1735573526961,0.30069,3332.4,3331.9,0.30074]
[1735573527157,0.30074,3331.9,3331.8,0.30074]
[1735573527654,0.30075,3331.8,3331.7,0.30075]
[1735573528056,1.2682,3332.5,3331.6,3.2078]
[1735573528256,0.3007,3332.3,3332.2,3.50851]
[1735573529665,1.2682,3332.5,3332.2,3.2078]
[1735573529967,0.3007,3332.3,3332.2,3.50851]
[1735573531269,1.2682,3332.5,3332.2,3.2078]
[1735573531768,0.3007,3332.3,3332.2,3.2078]
[1735573532061,0.3007,3332.3,3332.2,3.50851]
[1735573532266,0.3007,3332.3,3332.2,3.2078]
[1735573532463,1.2682,3332.5,3332.2,3.2078]
[1735573532765,3.52968841,3333.1,3333.0,0.30064]
[1735573533265,3.08601111,3333.3,3333.2,0.30062]
[1735573533461,4.70604836,3333.6,3333.5,0.3006]
[1735573533664,7.05585903,3334.2,3334.1,0.30054]
[1735573533861,7.05585903,3334.2,3334.1,7.27328245]
[1735573534055,7.05585903,3334.2,3334.1,4.98334]
[1735573534256,7.05585903,3334.2,3334.1,48.07328245]
[1735573534660,4.74994903,3334.2,3334.1,53.07328245]
[1735573534856,4.10851903,3334.2,3334.1,53.07328245]
[1735573535061,3.42456903,3334.2,3334.1,53.07328245]
[1735573535272,1.09374691,3334.9,3334.8,0.30048]
[1735573535471,1.09374691,3334.9,3334.8,5.79822245]
[1735573536460,0.9101,3335.9,3334.8,11.14769913]
[1735573536461,0.60972,3335.9,3334.8,11.14769913]
[1735573536766,0.60972,3335.9,3335.8,0.30039]
[1735573538072,0.60972,3335.9,3335.8,46.10039]
[1735573538364,0.46270147,3335.9,3335.8,46.10039]
[1735573538869,1.2766,3337.6,3335.8,45.8]
[1735573539063,0.30022,3337.7,3337.4,3.2078]
[1735573539367,3.2078,3338.1,3337.4,3.2078]
[1735573539368,0.3002,3338.0,3337.5,0.30023]
[1735573539667,3.2078,3338.1,3337.4,3.2078]
[1735573539863,0.3002,3337.9,3337.5,0.30023]
[1735573540062,0.30019,3338.1,3337.7,0.30022]
[1735573540270,0.30015,3338.4,3337.4,3.2078]
[1735573540571,0.30015,3338.4,3337.6,2.93989913]
[1735573540764,0.30015,3338.4,3337.9,0.3002]
[1735573541062,3.2078,3338.5,3337.4,3.2078]
[1735573541266,3.2078,3338.5,3337.4,4.6818]
[1735573541467,0.30017,3338.3,3337.8,3.50801]
[1735573541865,1.2766,3338.7,3338.2,3.2078]
[1735573542064,3.2078,3338.9,3337.6,2.93989913]
[1735573542065,2.3986,3339.1,3338.7,0.30013]
[1735573542272,2.93989913,3339.6,3339.0,3.2078]
[1735573542571,0.30006,3339.5,3339.0,3.2078]
[1735573542767,2.93989913,3339.6,3339.0,3.2078]
[1735573543266,3.23994913,3339.6,3339.1,0.30009]
[1735573543571,2.93989913,3339.6,3339.0,3.2078]
[1735573543769,0.30009,3339.1,3339.0,3.2078]
[1735573544069,0.75027,3339.0,3337.3,3.2078]
[1735573544371,3.24003913,3338.6,3338.1,0.30017]
[1735573544666,3.2078,3338.7,3337.9,3.2078]
[1735573544867,0.30017,3338.3,3337.9,3.2078]
[1735573545061,3.2078,3338.7,3337.9,3.2078]
[1735573545267,3.2078,3338.7,3337.4,3.50804]
[1735573545268,0.30019,3338.0,3337.4,3.50804]
[1735573545473,3.2078,3338.2,3337.4,3.2078]
[1735573545874,6.14769913,3338.2,3337.3,1.474]
[1735573546073,2.93989913,3338.2,3337.3,1.474]
[1735573546369,4.3632,3338.5,3337.8,3.2078]
[1735573546772,0.3002,3337.9,3337.8,3.2078]
[1735573547073,0.30013,3338.7,3338.2,0.30017]
[1735573547274,2.93989913,3338.9,3338.2,0.30017]
[1735573547275,2.93989913,3338.9,3338.2,3.2078]
[1735573547571,2.3095,3339.2,3337.1,0.75068]
[1735573547572,2.3095,3339.2,3338.8,0.30011]
[1735573547780,1.1492,3339.2,3338.6,4.6498]
[1735573548264,1.1492,3339.2,3338.9,0.3001]
[1735573548467,1.1492,3339.2,3338.6,4.6498]
[1735573548667,0.00331436,3339.3,3338.9,0.3001]
[1735573548864,0.00331436,3339.3,3339.0,3.2078]
[1735573549065,0.00331436,3339.3,3339.2,0.30008]
[1735573549267,0.00331436,3339.3,3339.2,3.23997913]
[1735573549472,3.50775,3340.7,3340.2,0.29999]
[1735573549678,3.2078,3340.7,3340.2,4.6498]
[1735573550072,3.2078,3341.1,3340.2,4.6498]
[1735573550271,3.2078,3341.1,3341.0,0.29992]
[1735573550465,3.2078,3341.1,3340.6,3.2078]
[1735573550675,3.2078,3341.1,3340.9,0.29992]
[1735573550877,3.2078,3341.1,3340.9,41.09992]
[1735573551075,0.29988,3341.5,3340.9,40.8]
[1735573551272,0.74945,3342.7,3341.1,3.50771]
[1735573551273,3.2078,3342.0,3341.1,3.50771]
[1735573551576,3.2078,3342.4,3341.1,4.94871]
[1735573551770,0.29983,3342.0,3341.1,4.94871]
[1735573551969,0.29985,3341.8,3341.1,4.94871]
[1735573552268,5.40789913,3342.5,3341.1,4.94871]
[1735573552469,0.29984,3341.9,3341.1,4.94871]
[1735573552771,0.29986,3341.8,3341.1,4.94871]
[1735573552970,0.29989,3341.4,3341.1,3.2078]
[1735573553166,3.2078,3342.1,3341.1,3.2078]
[1735573553379,3.2078,3342.1,3341.1,3.50771]
[1735573553575,3.2078,3342.1,3341.1,3.2078]
[1735573554274,0.29985,3341.8,3341.5,3.2078]
[1735573554774,3.2078,3342.1,3341.5,3.50767]
[1735573554975,5.6758,3342.5,3341.5,3.2078]
[1735573555287,0.29979,3342.4,3341.5,3.50767]
[1735573555580,3.2078,3342.0,3341.5,3.2078]
[1735573555784,0.29989,3341.4,3341.1,3.50771]
[1735573555978,8.21748,3342.5,3341.1,3.5077]
[1735573555979,0.29988,3341.5,3341.1,3.5077]
[1735573556280,0.29988,3341.5,3341.2,0.2999]
[1735573556480,3.2078,3342.4,3341.1,3.2078]
[1735573556681,0.74952,3342.3,3341.1,3.2078]
[1735573556881,0.29989,3341.4,3341.1,3.2078]
[1735573557071,3.2078,3341.3,3340.3,10.7098]
[1735573557377,3.2078,3341.4,3340.4,1.441]
[1735573557579,0.29993,3340.9,3340.6,0.29995]
[1735573557885,3.2078,3341.0,3340.9,0.29993]
[1735573558283,3.2078,3341.0,3340.7,0.29994]
[1735573558685,3.2078,3341.4,3340.4,1.441]
[1735573558877,3.2078,3340.8,3340.4,1.441]
[1735573559084,3.2078,3340.8,3340.0,1.441]
[1735573559383,1.57352,3341.0,3340.6,0.29995]
[1735573559773,1.2736,3341.0,3340.3,3.2078]
[1735573560082,1.2736,3341.0,3340.8,0.29993]
[1735573560282,3.50771,3341.2,3340.8,0.29993]
[1735573560586,3.2078,3341.2,3340.9,0.29992]
[1735573560976,3.2078,3341.2,3340.3,3.2078]
[1735573561181,3.2078,3341.2,3340.1,40.8]
[1735573561182,3.2078,3340.7,3340.1,40.8]
[1735573561484,3.2078,3340.7,3339.9,3.2078]
[1735573561485,3.2078,3341.1,3339.9,3.2078]
[1735573561681,0.29994,3340.8,3340.5,0.29996]
[1735573561880,0.29993,3340.9,3340.3,3.2078]
[1735573562082,2.4048,3341.3,3341.1,0.29991]
[1735573562390,0.29985,3341.8,3341.5,0.29987]
[1735573562686,1.57346,3341.7,3341.4,0.29988]
[1735573562886,0.29987,3341.6,3341.4,0.29988]
[1735573563189,1.2736,3341.7,3341.1,3.2078]
[1735573563486,0.2999,3341.3,3341.0,0.29991]
[1735573563673,1.2736,3341.7,3340.7,3.2078]
[1735573563875,3.2078,3341.5,3340.7,3.2078]
[1735573564683,1.2736,3341.7,3341.1,3.2078]
[1735573564885,1.2736,3341.7,3341.5,3.2078]
[1735573565275,1.57346,3341.7,3341.4,0.29988]
[1735573565485,1.57346,3341.7,3341.5,0.29988]
[1735573565686,1.2736,3341.7,3341.1,3.2078]
[1735573566496,3.2078,3341.6,3340.8,42.24]
[1735573566694,0.29989,3341.4,3341.2,0.2999]
[1735573566889,3.2078,3341.6,3341.1,0.29991]
[1735573567096,0.29988,3341.5,3341.3,0.29989]
[1735573567292,1.2736,3341.7,3341.6,0.29987]
[1735573567491,1.2724,3341.8,3341.1,3.2078]
[1735573567690,0.29987,3341.6,3341.4,0.29988]
[1735573568095,0.29986,3341.7,3341.5,0.29987]
[1735573568396,1.2724,3341.8,3341.1,3.2078]
[1735573568696,0.29986,3341.7,3341.5,0.29987]
[1735573568893,1.57225,3341.8,3341.6,0.29987]
[1735573569189,1.2724,3341.8,3341.1,3.2078]
[1735573569395,2.4004,3342.1,3341.5,3.2078]
[1735573569990,0.29983,3342.0,3341.5,3.2078]
[1735573570295,4.3841,3342.6,3341.5,3.2078]
[1735573570494,0.29985,3341.9,3341.6,0.29986]
[1735573570687,0.29985,3341.8,3341.6,0.29986]
[1735573570894,0.29984,3341.9,3341.7,41.09985]
[1735573571092,3.2078,3342.2,3342.1,0.29982]
[1735573571298,3.2078,3343.1,3342.1,0.74956]
[1735573571597,3.50754,3343.1,3342.9,0.29974]
[1735573571896,3.2078,3343.6,3343.0,0.29974]
[1735573572095,3.2078,3343.6,3342.9,3.2078]
[1735573572391,0.29966,3343.9,3343.7,0.29968]
[1735573572594,3.2078,3344.7,3343.8,3.2078]
[1735573572797,3.2078,3344.7,3344.4,0.29962]
[1735573572985,3.2078,3344.7,3344.2,3.2078]
[1735573572986,3.2078,3344.7,3344.5,0.29961]
[1735573573187,3.2078,3344.7,3344.6,0.2996]
[1735573573498,0.29954,3345.2,3344.7,0.29958]
[1735573573693,3.2078,3345.6,3344.6,4.6478]
[1735573573890,0.29955,3345.2,3344.7,0.29959]
[1735573574091,11.3911501,3345.6,3344.6,4.6478]
[1735573574397,0.29963,3344.3,3343.8,0.29966]
[1735573574794,3.2078,3344.5,3343.7,3.2078]
[1735573574990,0.29963,3344.3,3343.8,0.29966]
[1735573575195,3.2078,3344.5,3343.6,1.44]
[1735573575498,3.2078,3344.1,3343.3,3.2078]
[1735573575698,3.2078,3344.1,3342.7,3.1833501]
[1735573575699,0.29972,3343.2,3342.8,0.29975]
[1735573575999,0.29971,3343.4,3343.0,0.29974]
[1735573576203,3.2078,3343.7,3342.7,3.2078]
[1735573576495,3.2078,3344.1,3342.7,8.2078]
[1735573576696,0.29967,3343.8,3343.4,0.2997]
[1735573576996,3.2078,3344.1,3343.4,1.443]
[1735573577195,3.2078,3344.1,3343.4,1.7427]
[1735573577196,0.29968,3343.8,3343.4,1.7427]
[1735573577400,3.2078,3344.1,3343.1,3.2078]
[1735573577401,0.29966,3343.9,3343.1,3.2078]
[1735573577600,3.2078,3344.1,3343.1,3.2078]
[1735573577799,0.29972,3343.3,3343.1,3.2078]
[1735573578100,3.2078,3343.7,3342.7,3.2078]
[1735573578301,0.29972,3343.3,3342.9,0.29974]
[1735573578501,0.29973,3343.2,3342.8,0.29976]
[1735573578704,3.2078,3343.7,3342.7,6.1348586]
[1735573579002,3.2078,3342.8,3342.2,3.2078]
[1735573579204,0.29979,3342.5,3342.2,3.50761]
[1735573579404,3.2078,3342.8,3341.8,4.6508]
[1735573579405,0.2998,3342.3,3341.8,4.6508]
[1735573579704,0.29984,3342.0,3341.8,4.6508]
[1735573579899,0.29984,3341.9,3341.8,4.6508]
[1735573580105,0.2998,3342.3,3341.6,40.8]
[1735573580301,3.2078,3342.6,3341.9,0.29983]
[1735573580604,0.29984,3342.0,3341.8,3.2078]
[1735573580904,3.2078,3342.6,3341.8,3.2078]
[1735573581202,0.29984,3342.0,3341.7,0.29986]
[1735573581398,3.2078,3342.2,3341.6,40.8]
[1735573581598,0.29983,3342.1,3341.7,0.29986]
[1735573581798,0.29983,3342.1,3341.8,0.29984]
[1735573581993,3.2078,3342.2,3342.1,0.29982]
[1735573582194,3.2078,3343.1,3341.7,3.2078]
[1735573582501,3.2078,3343.1,3343.0,0.29974]
[1735573582705,0.2997,3343.5,3343.2,0.29972]
[1735573583005,3.2078,3343.7,3342.7,2.443]
[1735573583305,3.50756,3342.8,3342.7,1.0]
[1735573584305,11.3931965,3342.8,3342.1,40.8]
[1735573584501,3.2078,3342.4,3341.5,1.443]
[1735573584804,0.29986,3341.7,3341.4,0.29988]
[1735573585006,3.2078,3342.0,3341.5,40.8]
[1735573585206,3.50767,3341.6,3341.5,40.8]
[1735573585410,3.2078,3341.6,3340.5,1.443]
[1735573585595,0.74961,3341.9,3340.5,1.443]
[1735573585596,3.2078,3341.1,3340.5,1.69087952]
[1735573585794,3.2078,3341.1,3340.9,0.29992]
[1735573586099,3.2078,3341.1,3340.6,40.8]
[1735573586100,3.2078,3341.1,3340.8,0.29993]
[1735573586301,3.2078,3341.1,3341.0,0.29992]
[1735573586493,3.2078,3341.1,3340.6,40.8]
[1735573586699,5.1709265,3342.3,3340.6,40.8]
[1735573586700,3.2078,3341.5,3341.4,0.29988]
[1735573587103,3.2078,3341.5,3340.7,3.2078]
[1735573587599,3.50768,3341.5,3341.2,0.2999]
[1735573587796,3.2078,3341.5,3341.0,0.29992]
[1735573587996,3.2078,3341.5,3340.7,3.2078]
[1735573588201,0.29989,3341.4,3341.1,0.2999]
[1735573588398,3.2078,3341.5,3341.2,0.2999]
[1735573588598,0.29989,3341.4,3341.2,0.2999]
[1735573588809,3.2078,3341.5,3341.2,0.2999]
[1735573589009,0.29991,3341.2,3340.9,0.29992]
[1735573589206,0.29991,3341.1,3340.9,0.29992]
[1735573589409,0.2999,3341.3,3341.1,0.29991]
[1735573589614,0.29993,3341.0,3340.8,0.29994]
[1735573589907,0.29992,3341.1,3340.9,0.29993]
[1735573590103,3.50768,3341.5,3341.3,0.29989]
[1735573590404,3.50768,3341.5,3340.7,3.95767]
[1735573590405,3.50768,3341.5,3340.8,0.74985]
[1735573590608,3.50768,3341.5,3341.3,0.29989]
[1735573590813,0.29989,3341.3,3340.7,3.2078]
[1735573591106,0.29989,3341.4,3341.2,0.2999]
[1735573591311,0.29989,3341.4,3341.3,41.09989]
[1735573591511,0.29985,3341.9,3341.7,0.29985]
[1735573591811,0.29986,3341.7,3341.6,0.29987]
[1735573592110,3.2078,3342.0,3341.3,44.0078]
[1735573592408,0.29986,3341.7,3341.3,44.0078]
[1735573592601,0.29986,3341.7,3341.5,0.29987]
[1735573592800,0.29988,3341.4,3341.3,40.8]
[1735573593712,3.2078,3342.0,3341.3,40.8]
[1735573594007,3.2078,3341.6,3341.3,40.8]
[1735573594199,3.2078,3342.0,3341.3,40.8]
[1735573594403,0.29986,3341.7,3341.5,0.29987]
[1735573594607,0.29988,3341.5,3341.3,40.8]
[1735573594911,0.29988,3341.4,3341.3,40.8]
[1735573595208,0.29992,3341.0,3340.9,3.2078]
[1735573595399,1.2994,3341.3,3340.9,3.2078]
[1735573595606,1.59929,3341.3,3341.1,0.29991]
[1735573595904,3.2078,3341.5,3341.1,0.29991]
[1735573596212,3.2078,3341.5,3340.9,44.0078]
[1735573596413,0.29991,3341.1,3340.9,44.30772]
[1735573596599,0.29992,3341.0,3340.9,44.0078]
[1735573596800,3.2078,3341.1,3340.4,6.98669237]
[1735573597007,3.2078,3340.6,3340.1,6.98669237]
[1735573597206,3.2078,3340.6,3340.1,7.28668237]
[1735573597411,0.29999,3340.3,3340.1,7.28669237]
[1735573597607,3.2078,3340.6,3340.1,6.98669237]
[1735573597806,3.2078,3340.6,3340.1,47.78669237]
[1735573598010,0.29998,3340.4,3340.2,0.29999]
[1735573598210,3.2078,3340.6,3340.1,47.78669237]
[1735573598410,3.2078,3340.6,3340.3,0.29997]
[1735573598612,0.29996,3340.5,3340.2,0.29998]
[1735573598811,0.29998,3340.4,3340.3,0.29998]
[1735573599115,3.2078,3340.6,3340.3,0.29998]
[1735573599312,0.29999,3340.3,3340.2,0.29999]
[1735573599508,0.3,3340.1,3340.0,1.0]
[1735573599707,3.5078,3340.2,3340.1,0.3]
[1735573599908,0.3,3340.1,3340.0,1.30001]
[1735573600414,0.3,3340.1,3340.0,1.0]
[1735573600600,0.3,3340.1,3339.3,6.98669237]
[1735573600601,0.30006,3339.4,3339.3,7.28676237]
[1735573600807,0.30006,3339.4,3339.3,6.98669237]
[1735573601414,0.75019,3339.3,3338.7,3.2078]
[1735573601717,0.30011,3339.0,3338.8,0.30012]
[1735573601913,0.30012,3338.8,3338.7,3.50792]
[1735573602123,0.30012,3338.8,3338.7,3.2078]
[1735573602505,3.2078,3339.6,3338.6,6.98669237]
[1735573602707,3.9579,3339.7,3339.0,0.3001]
[1735573603003,0.3001,3339.0,3338.8,0.30011]
[1735573603414,0.3001,3339.0,3338.9,0.30011]
[1735573603609,0.75016,3339.5,3338.6,3.2078]
[1735573603808,0.75016,3339.5,3338.8,0.30011]
[1735573604010,1.3155,3339.6,3338.6,3.2078]
[1735573604315,1.3155,3339.6,3339.1,0.30008]
[1735573604511,1.3155,3339.6,3338.7,0.30012]
[1735573604512,0.30012,3338.8,3338.7,0.30012]
[1735573604813,3.2078,3338.9,3338.0,1.444]
[1735573605011,0.30017,3338.3,3337.7,0.30022]
[1735573605209,4.5039965,3338.8,3337.6,3.95837]
[1735573605404,1.2982,3338.7,3337.7,40.8]
[1735573605602,0.75034,3338.6,3337.7,40.8]
[1735573605807,0.3002,3337.9,3337.7,40.8]
[1735573606013,3.2078,3338.1,3337.1,4.6718]
[1735573606215,0.30019,3338.0,3337.8,0.3002]
[1735573606509,3.2078,3338.1,3337.3,40.8]
[1735573606714,0.30022,3337.7,3337.3,40.8]
[1735573607015,3.2078,3338.1,3337.3,40.8]
[1735573607213,3.2078,3338.1,3337.6,0.30022]
[1735573607214,0.30019,3338.0,3337.6,0.30022]
[1735573607409,0.30021,3337.8,3337.6,0.30022]
[1735573607608,0.3002,3337.9,3337.7,0.30021]
[1735573607810,3.2078,3338.1,3337.5,3.2078]
[1735573608011,0.30019,3338.0,3337.8,0.3002]
[1735573608316,3.2078,3338.1,3337.5,3.2078]
[1735573608611,0.30019,3338.0,3337.6,0.30022]
[1735573608914,0.30019,3338.0,3337.5,3.2078]
[1735573608915,0.30019,3338.0,3337.8,0.3002]
[1735573609318,3.2078,3338.1,3337.5,3.2078]
[1735573609814,0.30021,3337.8,3337.6,0.30022]
[1735573610012,0.3002,3337.9,3337.7,0.30021]
[1735573610314,3.2078,3338.5,3337.5,3.2078]
[1735573610617,3.2078,3338.5,3338.4,0.30015]
[1735573611114,1.3186,3338.8,3338.0,3.2078]
[1735573611115,0.30017,3338.2,3338.0,3.2078]
[1735573611312,0.30016,3338.3,3338.1,0.30017]
[1735573611507,0.30016,3338.4,3338.2,0.30016]
[1735573611707,3.2078,3338.6,3338.0,3.2078]
[1735573611911,0.30017,3338.2,3338.0,0.30018]
[1735573612113,0.30021,3337.8,3337.6,0.30022]
[1735573612608,0.30021,3337.8,3337.4,1.465]
[1735573612920,3.2078,3338.1,3337.4,2.21559]
[1735573613120,0.30019,3338.0,3337.9,0.30019]
[1735573613313,3.2078,3338.5,3338.0,0.30019]
[1735573613509,3.2078,3338.5,3338.4,0.30015]
[1735573614312,3.2078,3338.5,3337.9,3.2078]
[1735573614313,0.30016,3338.4,3338.3,0.30016]
[1735573614517,3.2078,3338.5,3337.9,3.2078]
[1735573614717,3.50795,3338.5,3338.4,0.30015]
[1735573615116,4.4514,3338.9,3338.0,40.8]
[1735573615318,0.30012,3338.8,3338.7,0.30012]
[1735573615511,4.4514,3338.9,3338.3,3.2078]
[1735573615821,1.2436,3338.9,3338.0,40.8]
[1735573616118,2.93587818,3338.2,3337.4,3.2078]
[1735573616422,3.2078,3338.4,3337.5,1.87687]
[1735573616617,0.30019,3338.1,3338.0,0.30019]
[1735573617009,3.2078,3338.4,3337.4,3.2078]
[1735573617010,2.93587818,3338.2,3337.4,3.2078]
[1735573617213,0.30019,3338.0,3337.9,0.30019]
[1735573617418,0.3002,3337.9,3337.8,0.3002]
[1735573618118,2.93587818,3338.2,3337.4,3.2078]
[1735573618119,3.2078,3338.0,3337.4,3.2078]
[1735573618318,0.30026,3337.3,3337.1,0.30026]
[1735573618520,3.2078,3337.6,3336.8,1.05103]
[1735573618721,0.30024,3337.4,3337.3,0.30024]
[1735573618920,3.2078,3337.6,3336.8,0.75074]
[1735573619111,0.30025,3337.3,3337.2,0.30025]
[1735573619310,3.2078,3337.6,3337.1,0.30026]
[1735573619311,0.30026,3337.2,3337.1,0.30026]
[1735573619514,2.93587818,3337.3,3336.7,3.2078]
[1735573619718,2.93587818,3337.3,3336.8,0.30029]
[1735573619719,0.30029,3336.9,3336.8,0.30029]
[1735573620116,2.93587818,3337.3,3336.7,3.2078]
[1735573620317,0.30029,3336.9,3336.8,0.30029]
[1735573620521,2.93587818,3337.3,3336.7,3.2078]
[1735573620829,0.30033,3336.5,3336.4,0.30033]
[1735573621023,2.93587818,3336.9,3336.3,3.2078]
[1735573621321,0.30033,3336.4,3336.3,3.2078]
[1735573621619,0.30038,3335.9,3335.8,0.30038]
[1735573621825,0.30038,3335.8,3335.7,3.50819]
[1735573622026,1.237,3336.4,3335.7,3.2078]
[1735573622331,3.2078,3336.3,3335.6,40.8]
[1735573622532,3.2078,3335.9,3335.3,3.2078]
[1735573622826,3.1970458,3335.7,3334.7,3.2078]
[1735573623224,3.2078,3335.5,3334.7,3.2078]
[1735573623819,0.30043,3335.4,3335.2,0.30044]
[1735573624118,3.2078,3335.5,3334.7,3.2078]
[1735573624322,0.30043,3335.3,3335.1,0.30044]
[1735573624516,0.30043,3335.4,3335.2,0.30043]
[1735573625019,0.30043,3335.4,3334.8,40.8]
[1735573625216,3.2078,3335.5,3334.8,40.8]
[1735573625422,0.30042,3335.4,3334.8,40.8]
[1735573625616,0.30043,3335.3,3335.1,0.30044]
[1735573625824,0.30043,3335.4,3335.1,0.30044]
[1735573626027,0.30044,3335.3,3335.0,0.30045]
[1735573626227,3.2078,3335.5,3335.0,0.30045]
[1735573626426,0.30043,3335.4,3335.1,0.30045]
[1735573626630,0.30044,3335.2,3335.0,0.30045]
[1735573626829,3.2078,3335.5,3334.8,40.8]
[1735573627019,0.30047,3334.9,3334.8,40.8]
[1735573627222,0.30047,3334.9,3334.3,3.2078]
[1735573627223,3.2078,3335.1,3334.3,3.2078]
[1735573627724,0.30051,3334.4,3334.3,40.8]
[1735573627926,3.2078,3335.1,3334.3,40.8]
[1735573627927,1.315,3335.0,3334.3,40.8]
[1735573628221,0.30049,3334.7,3334.5,0.3005]
[1735573628429,1.26462465,3335.0,3334.8,0.30047]
[1735573628625,3.2078,3335.1,3334.3,40.8]
[1735573629026,3.2078,3335.1,3334.7,0.30048]
[1735573629027,0.30047,3334.9,3334.7,0.30048]
[1735573629222,3.2078,3335.1,3334.3,40.8]
[1735573629428,0.3005,3334.6,3334.3,41.10051]
[1735573629725,0.3005,3334.5,3334.3,40.8]
[1735573629927,1.2321,3335.0,3334.3,44.0078]
[1735573630428,0.30048,3334.8,3334.5,0.3005]
[1735573630632,0.3005,3334.6,3334.3,44.0078]
[1735573630825,0.30049,3334.7,3334.4,0.3005]
[1735573631038,0.3005,3334.6,3334.4,0.30051]
[1735573631623,0.30049,3334.7,3334.5,0.30049]
[1735573631825,1.2321,3335.0,3334.4,0.30051]
[1735573632031,0.3005,3334.6,3334.4,0.30051]
[1735573632331,1.2321,3335.0,3334.3,44.0078]
[1735573632533,0.30049,3334.7,3334.5,0.3005]
[1735573632833,4.5013,3335.1,3334.3,44.0078]
[1735573632834,3.2078,3335.1,3335.0,0.30046]
[1735573633030,3.1970458,3335.7,3334.8,3.2078]
[1735573633226,3.1970458,3335.7,3334.9,0.75117]
[1735573633432,5.7873,3336.0,3335.4,3.2078]
[1735573633732,5.7873,3336.0,3334.8,0.30047]
[1735573633733,0.30045,3335.1,3334.8,0.30047]
[1735573633936,0.30045,3335.1,3335.0,40.8]
[1735573634634,0.30045,3335.1,3335.0,41.10046]
[1735573634938,3.2078,3335.2,3334.4,3.2078]
[1735573635236,0.30047,3334.9,3334.5,40.8]
[1735573635434,0.30045,3335.1,3335.0,0.30046]
[1735573635733,3.2078,3335.2,3335.1,0.30045]
[1735573635932,3.2078,3335.2,3334.6,0.75124]
[1735573636130,0.30039,3335.8,3335.7,0.30039]
[1735573636334,2.5795,3336.0,3335.3,3.2078]
[1735573636533,0.3004,3335.7,3335.5,0.30041]
[1735573636728,7.5795,3336.0,3334.6,5.7221]
[1735573636943,0.30045,3335.1,3335.0,0.30045]
[1735573637239,0.30044,3335.3,3335.1,0.30044]
[1735573637434,0.30045,3335.2,3335.0,0.30045]
[1735573637638,7.1558358,3335.7,3335.0,0.30045]
[1735573637639,0.30045,3335.1,3335.0,0.30045]
[1735573638336,0.30044,3335.2,3335.0,0.30045]
[1735573638540,0.30045,3335.1,3335.0,0.30045]
[1735573638735,3.2078,3335.3,3334.6,3.2078]
[1735573638941,0.30048,3334.7,3334.6,3.2078]
[1735573639139,0.30048,3334.8,3334.7,0.30048]
[1735573639645,0.3005,3334.6,3334.4,0.3005]
[1735573639843,0.3005,3334.6,3334.5,0.3005]
[1735573640143,0.3005,3334.6,3334.3,40.8]
[1735573640144,0.30049,3334.7,3334.4,0.30051]
[1735573640341,0.3005,3334.5,3334.4,0.30051]
[1735573640637,0.30051,3334.4,3334.3,41.10052]
[1735573640841,0.30051,3334.5,3334.3,40.8]
[1735573641042,3.2078,3334.9,3334.1,3.2078]
[1735573641245,3.2078,3334.9,3334.3,0.75131]
[1735573641440,3.2078,3334.9,3334.8,0.30047]
[1735573641846,4.5212,3335.6,3335.0,0.75114]
[1735573642047,4.5212,3335.6,3335.0,0.30045]
[1735573642048,0.30045,3335.1,3335.0,0.30045]
[1735573642236,4.5212,3335.6,3334.9,3.50826]
[1735573642545,4.5212,3335.6,3335.0,40.8]
[1735573642546,0.30045,3335.1,3335.0,40.8]
[1735573642838,4.5212,3335.6,3335.0,40.8]
[1735573643236,3.2078,3336.0,3335.2,3.2078]
[1735573643445,3.2078,3336.0,3335.5,0.3004]
[1735573643638,3.2078,3336.0,3335.2,3.2078]
[1735573643840,0.30045,3335.1,3335.0,40.8]
[1735573644040,0.30045,3335.1,3334.8,3.2078]
[1735573644041,3.2078,3335.2,3334.2,0.75133]
[1735573644347,2.94306353,3334.9,3334.1,3.2078]
[1735573644644,2.94306353,3334.9,3334.2,0.30052]
[1735573644645,0.30053,3334.3,3334.2,0.30052]
[1735573644846,0.75119,3334.8,3334.1,3.2078]
[1735573645052,0.3005,3334.5,3334.4,0.3005]
[1735573645238,3.24353353,3334.9,3334.8,0.30047]
[1735573645434,0.3005,3334.5,3334.2,0.30053]
[1735573645738,0.30052,3334.4,3334.3,0.30052]
[1735573645932,0.3005,3334.5,3334.4,0.3005]
[1735573646350,0.3005,3334.6,3334.5,0.30049]
[1735573646644,0.30048,3334.8,3334.2,1.05185]
[1735573646837,2.94306353,3334.9,3334.6,0.30049]
[1735573647031,0.30049,3334.7,3334.6,0.30049]
[1735573647545,0.30049,3334.7,3334.1,3.95913]
[1735573647546,3.2078,3335.2,3335.1,0.30045]
[1735573647738,0.3004,3335.7,3335.1,0.30045]
[1735573647932,1.2793,3335.9,3335.7,0.30039]
[1735573648133,1.2793,3335.9,3334.9,3.95897]
[1735573648340,0.30043,3335.3,3335.2,0.30043]
[1735573648643,0.30041,3335.5,3335.1,0.75113]
[1735573648938,2.94306353,3335.7,3334.9,3.2078]
[1735573649140,1.2793,3335.9,3334.7,2.4782]
[1735573649141,2.94306353,3335.3,3334.7,2.4782]
[1735573649344,3.9589,3335.2,3334.5,3.2078]
[1735573649548,0.30048,3334.8,3334.7,0.30048]
[1735573649747,1.05158,3335.1,3334.6,0.30049]
[1735573649943,0.30049,3334.7,3334.6,0.30049]
[1735573650138,0.75113,3335.1,3334.5,3.2078]